bitfinex/quotes_BTCUSD_20250808
["timestamp","ask_amount","ask_price","bid_price","bid_amount"]
[1754636609532,0.50770095,116770.0,116760.0,0.0278]
[1754636609781,0.50770095,116770.0,116760.0,0.34474473]
[1754636609949,0.50766095,116770.0,116760.0,0.34474473]
[1754636610186,0.37782095,116770.0,116760.0,0.34474473]
[1754636610338,0.50762095,116770.0,116760.0,0.34474473]
[1754636611934,0.50543367,116770.0,116760.0,0.34474473]
[1754636612134,0.37559367,116770.0,116760.0,0.34474473]
[1754636612332,0.50543367,116770.0,116760.0,0.34474473]
[1754636613104,0.50539367,116770.0,116760.0,0.34474473]
[1754636613251,0.37555367,116770.0,116760.0,0.34474473]
[1754636613438,0.50539367,116770.0,116760.0,0.34474473]
[1754636614073,0.50535367,116770.0,116760.0,0.34474473]
[1754636615372,0.50535367,116770.0,116760.0,0.0278]
[1754636615548,0.50535367,116770.0,116760.0,0.34474473]
[1754636615777,0.50531367,116770.0,116760.0,0.34474473]
[1754636617121,0.50527367,116770.0,116760.0,0.34474473]
[1754636617970,0.48689033,116770.0,116760.0,0.34474473]
[1754636618170,0.48685033,116770.0,116760.0,0.34474473]
[1754636618482,0.35697033,116770.0,116760.0,0.34474473]
[1754636618644,0.48681033,116770.0,116760.0,0.34474473]
[1754636619081,0.46104533,116770.0,116760.0,0.34474473]
[1754636619284,0.37425108,116770.0,116760.0,0.34474473]
[1754636620079,0.37417108,116770.0,116760.0,0.34474473]
[1754636621201,0.24429108,116770.0,116760.0,0.34474473]
[1754636621403,0.37413108,116770.0,116760.0,0.34474473]
[1754636622593,0.37409108,116770.0,116760.0,0.34474473]
[1754636622795,0.37409108,116770.0,116760.0,0.0278]
[1754636623025,0.46088533,116770.0,116760.0,0.34474473]
[1754636624308,0.46088533,116770.0,116760.0,0.0278]
[1754636624521,0.37409108,116770.0,116760.0,0.34474473]
[1754636624732,0.37409108,116770.0,116760.0,0.66168946]
[1754636624948,0.37413108,116770.0,116760.0,0.66168946]
[1754636625166,0.37409108,116770.0,116760.0,0.66168946]
[1754636625971,0.37405108,116770.0,116760.0,0.0278]
[1754636626126,0.3629114,116770.0,116760.0,0.66168946]
[1754636626766,0.3629114,116770.0,116760.0,0.34474473]
[1754636626980,0.42713094,116770.0,116760.0,0.66168946]
[1754636627291,0.3629114,116770.0,116760.0,0.66168946]
[1754636627635,0.3628714,116770.0,116760.0,0.66168946]
[1754636628273,0.3628314,116770.0,116760.0,0.66168946]
[1754636630008,0.3627914,116770.0,116760.0,0.66168946]
[1754636630541,0.3627914,116770.0,116760.0,0.0278]
[1754636630726,0.42699894,116770.0,116760.0,0.34474473]
[1754636631169,0.42695894,116770.0,116760.0,0.34474473]
[1754636632175,0.42691894,116770.0,116760.0,0.34474473]
[1754636632697,0.42691894,116770.0,116760.0,0.0278]
[1754636633161,0.42691894,116770.0,116760.0,0.34474473]
[1754636634254,0.42687894,116770.0,116760.0,0.34474473]
[1754636635432,0.42683894,116770.0,116760.0,0.34474473]
[1754636637435,0.42679894,116770.0,116760.0,0.34474473]
[1754636637578,0.42675894,116770.0,116760.0,0.34474473]
[1754636638204,0.42671894,116770.0,116760.0,0.34474473]
[1754636639661,0.42667894,116770.0,116760.0,0.34474473]
[1754636640836,0.42667894,116770.0,116760.0,0.0278]
[1754636641047,0.42667894,116770.0,116760.0,0.34474473]
[1754636642268,0.42663894,116770.0,116760.0,0.34474473]
[1754636643376,0.42633414,116770.0,116760.0,0.34474473]
[1754636643603,0.42629414,116770.0,116760.0,0.34474473]
[1754636644072,0.3620866,116770.0,116760.0,0.34474473]
[1754636644495,0.35094691,116770.0,116760.0,0.34474473]
[1754636645067,0.35094691,116770.0,116760.0,0.0278]
[1754636645317,0.35094691,116770.0,116760.0,0.02583]
[1754636645523,0.35094691,116770.0,116760.0,0.34277473]
[1754636645740,0.43770116,116770.0,116760.0,0.34277473]
[1754636645962,0.18875382,116760.0,116750.0,0.00301]
[1754636646150,0.27561593,116760.0,116750.0,0.34608473]
[1754636646725,0.40561593,116760.0,116750.0,0.34608473]
[1754636647528,0.40394202,116760.0,116750.0,0.34608473]
[1754636647732,0.44662437,116760.0,116750.0,0.34608473]
[1754636648266,0.44658437,116760.0,116750.0,0.34608473]
[1754636649424,0.44654437,116760.0,116750.0,0.34608473]
[1754636650412,0.44650437,116760.0,116750.0,0.02914]
[1754636650622,0.44650437,116760.0,116750.0,0.34608473]
[1754636650988,0.44650437,116760.0,116750.0,0.02914]
[1754636651642,0.44650437,116760.0,116750.0,0.34608473]
[1754636651869,0.44750437,116760.0,116750.0,0.34608473]
[1754636652492,0.44746437,116760.0,116750.0,0.34608473]
[1754636652891,0.44846437,116760.0,116750.0,0.34608473]
[1754636654952,0.40578202,116760.0,116750.0,0.34608473]
[1754636655354,0.40570202,116760.0,116750.0,0.34608473]
[1754636657903,0.40570202,116760.0,116750.0,0.02914]
[1754636658103,0.40570202,116760.0,116750.0,0.34608473]
[1754636658326,0.40566202,116760.0,116750.0,0.34608473]
[1754636659195,0.46356288,116760.0,116750.0,0.34608473]
[1754636662504,0.45627871,116760.0,116750.0,0.34608473]
[1754636669512,0.45627871,116760.0,116750.0,0.33929461]
[1754636671771,0.45627871,116760.0,116750.0,0.34226461]
[1754636671979,0.45627871,116760.0,116750.0,0.02531988]
[1754636672193,0.45627871,116760.0,116750.0,0.33550237]
[1754636672411,0.45825871,116760.0,116750.0,0.33550237]
[1754636672772,0.45817871,116760.0,116750.0,0.33550237]
[1754636673684,0.32833871,116760.0,116750.0,0.32673312]
[1754636673890,0.45817871,116760.0,116750.0,0.32673312]
[1754636674288,0.44703824,116760.0,116750.0,0.32673312]
[1754636678037,0.44703824,116760.0,116750.0,0.31996916]
[1754636678215,0.43311265,116760.0,116750.0,0.31996916]
[1754636679195,0.43311265,116760.0,116750.0,0.00302443]
[1754636679382,0.43311265,116760.0,116750.0,0.31996916]
[1754636679939,0.43311265,116760.0,116750.0,0.34363916]
[1754636680137,0.43311265,116760.0,116750.0,0.33687555]
[1754636680341,0.43635265,116760.0,116750.0,0.33886555]
[1754636681352,0.43311265,116760.0,116750.0,0.33886555]
[1754636681573,0.43635265,116760.0,116750.0,0.33210164]
[1754636685468,0.43635265,116760.0,116750.0,0.02367]
[1754636685666,0.43635265,116760.0,116750.0,0.34061473]
[1754636685899,0.46023265,116760.0,116750.0,0.34061473]
[1754636686200,0.46023265,116760.0,116750.0,0.33385174]
[1754636686861,0.46023265,116760.0,116750.0,0.01690701]
[1754636687074,0.46023265,116760.0,116750.0,0.33385174]
[1754636687584,0.46023265,116760.0,116750.0,0.3270869]
[1754636688610,0.46023265,116760.0,116750.0,0.32474467]
[1754636688855,0.46023265,116760.0,116750.0,0.31694473]
[1754636693657,0.46023265,116760.0,116750.0,0.31580766]
[1754636696193,0.1713062,116750.0,116740.0,0.05046191]
[1754636696430,0.23446008,116750.0,116740.0,0.68935137]
[1754636697545,0.23446008,116750.0,116740.0,0.68943249]
[1754636700855,0.68475594,116750.0,116740.0,8.112e-05]
[1754636701256,0.71048594,116750.0,116740.0,8.112e-05]
[1754636701563,0.39354121,116750.0,116740.0,0.31702585]
[1754636702004,0.17132088,116740.0,116730.0,0.03355191]
[1754636702210,0.46394822,116740.0,116730.0,0.35049664]
[1754636702412,0.49099822,116740.0,116730.0,0.34184473]
[1754636702543,0.49971318,116740.0,116730.0,0.34184473]
[1754636702765,0.51672922,116740.0,116730.0,0.0249]
[1754636702963,0.51672922,116740.0,116730.0,0.34184473]
[1754636704209,0.51672922,116740.0,116730.0,0.34223381]
[1754636704848,0.51672922,116740.0,116730.0,0.05018908]
[1754636705146,0.51672922,116740.0,116730.0,0.36713381]
[1754636705350,0.51672922,116740.0,116730.0,0.36912381]
[1754636705555,0.46024301,116740.0,116730.0,0.36912381]
[1754636705764,0.43319301,116740.0,116730.0,0.36912381]
[1754636706700,0.44121427,116740.0,116730.0,0.36912381]
[1754636707088,0.46826427,116740.0,116730.0,0.36912381]
[1754636707291,0.46826427,116740.0,116730.0,0.05217908]
[1754636707487,0.53458699,116740.0,116730.0,0.36912381]
[1754636707666,0.53458699,116740.0,116730.0,0.36713381]
[1754636708946,0.50885599,116740.0,116730.0,0.05018908]
[1754636709073,0.50885599,116740.0,116730.0,0.36713381]
[1754636709717,0.50885599,116740.0,116730.0,0.36912381]
[1754636709868,0.44253327,116740.0,116730.0,0.36912381]
[1754636711852,0.44253327,116740.0,116730.0,0.05217908]
[1754636712155,0.44253327,116740.0,116730.0,0.36912381]
[1754636713390,0.46826427,116740.0,116730.0,0.36912381]
[1754636713558,0.55505852,116740.0,116730.0,0.36912381]
[1754636714443,0.55505852,116740.0,116730.0,0.34383473]
[1754636714992,0.53117852,116740.0,116730.0,0.34383473]
[1754636715586,0.53117852,116740.0,116730.0,0.02689]
[1754636715786,0.53117852,116740.0,116730.0,0.34383473]
[1754636716441,0.53117852,116740.0,116730.0,0.02689]
[1754636716661,0.53117852,116740.0,116730.0,0.34383473]
[1754636717078,0.50544752,116740.0,116730.0,0.34383473]
[1754636717293,0.37560752,116740.0,116730.0,0.34383473]
[1754636717508,0.50227752,116740.0,116730.0,0.34383473]
[1754636717714,0.50227752,116740.0,116730.0,0.02689]
[1754636717924,0.50227752,116740.0,116730.0,0.34383473]
[1754636718333,0.52946752,116740.0,116730.0,0.34383473]
[1754636722413,0.52946752,116740.0,116730.0,0.02689]
[1754636722633,0.52946752,116740.0,116730.0,0.34383473]
[1754636723930,0.50227752,116740.0,116730.0,0.34383473]
[1754636724566,0.52643752,116740.0,116730.0,0.34383473]
[1754636726782,0.50227752,116740.0,116730.0,0.34383473]
[1754636727775,0.52946752,116740.0,116730.0,0.34383473]
[1754636727983,0.50530752,116740.0,116730.0,0.34383473]
[1754636728189,0.50227752,116740.0,116730.0,0.34383473]
[1754636728485,0.52946752,116740.0,116730.0,0.34383473]
[1754636729000,0.50227752,116740.0,116730.0,0.34383473]
[1754636729423,0.52643752,116740.0,116730.0,0.34383473]
[1754636729637,0.52946752,116740.0,116730.0,0.34383473]
[1754636732981,0.54058442,116740.0,116730.0,0.34383473]
[1754636736723,0.54058442,116740.0,116730.0,0.02689]
[1754636737139,0.54058442,116740.0,116730.0,0.34383473]
[1754636737497,0.53630442,116740.0,116730.0,0.34383473]
[1754636738075,0.44951017,116740.0,116730.0,0.34383473]
[1754636742095,0.44951017,116740.0,116730.0,0.02689]
[1754636742295,0.44951017,116740.0,116730.0,0.34383473]
[1754636742979,0.44951017,116740.0,116730.0,0.02689]
[1754636743204,0.44951017,116740.0,116730.0,0.31694473]
[1754636743933,0.53630442,116740.0,116730.0,0.31694473]
[1754636744676,0.53730442,116740.0,116730.0,0.31694473]
[1754636745184,0.53730442,116740.0,116730.0,0.34138473]
[1754636745756,0.53830442,116740.0,116730.0,0.34138473]
[1754636747468,0.53830442,116740.0,116730.0,0.34342473]
[1754636748624,0.53830442,116740.0,116730.0,0.02648]
[1754636748804,0.53830442,116740.0,116730.0,0.34342473]
[1754636756710,0.53830442,116740.0,116730.0,0.02648]
[1754636756884,0.53830442,116740.0,116730.0,0.34342473]
[1754636761385,0.53831818,116740.0,116730.0,0.34342473]
[1754636761578,0.53028316,116740.0,116730.0,0.34342473]
[1754636763311,0.53028316,116740.0,116730.0,0.02648]
[1754636763452,0.53028316,116740.0,116730.0,0.34342473]
[1754636766215,0.53028316,116740.0,116730.0,0.02648]
[1754636766372,0.53028316,116740.0,116730.0,0.34342473]
[1754636778954,0.53028316,116740.0,116730.0,0.02648]
[1754636779171,0.53028316,116740.0,116730.0,0.34342473]
[1754636779942,0.53028316,116740.0,116730.0,0.02648]
[1754636780146,0.53028316,116740.0,116730.0,0.34342473]
[1754636780515,0.53024316,116740.0,116730.0,0.02648]
[1754636781230,0.53024316,116740.0,116730.0,0.02444]
[1754636782455,0.44344891,116740.0,116730.0,0.02444]
[1754636783109,0.44344891,116740.0,116730.0,0.34138473]
[1754636785799,0.28641891,116740.0,116730.0,0.34341473]
[1754636785950,0.41645891,116740.0,116730.0,0.34341473]
[1754636786637,0.43926891,116740.0,116730.0,0.34341473]
[1754636787083,0.43926891,116740.0,116730.0,0.02647]
[1754636787292,0.44227891,116740.0,116730.0,0.34341473]
[1754636787890,0.52907316,116740.0,116730.0,0.34341473]
[1754636788262,0.52907316,116740.0,116730.0,0.02647]
[1754636788467,0.52907316,116740.0,116730.0,0.34341473]
[1754636788843,0.44227891,116740.0,116730.0,0.34341473]
[1754636789421,0.44227891,116740.0,116730.0,0.02647]
[1754636789640,0.44227891,116740.0,116730.0,0.34341473]
[1754636796672,0.44223891,116740.0,116730.0,0.34341473]
[1754636798268,0.41641891,116740.0,116730.0,0.34341473]
[1754636798478,0.41442891,116740.0,116730.0,0.34341473]
[1754636801277,0.41640891,116740.0,116730.0,0.34341473]
[1754636803000,0.41438891,116740.0,116730.0,0.34639473]
[1754636803720,0.0131169,116740.0,116730.0,0.83467502]
[1754636803953,0.1430769,116740.0,116730.0,0.83467502]
[1754636804161,0.16052592,116740.0,116730.0,0.86040202]
[1754636805058,0.3318468,116740.0,116730.0,0.22651256]
[1754636805276,0.3318468,116740.0,116730.0,0.86040202]
[1754636805446,0.3318468,116740.0,116730.0,0.54345729]
[1754636808569,0.3318468,116740.0,116730.0,0.055177]
[1754636808769,0.3821621,116740.0,116730.0,0.37212173]
[1754636808968,0.3318468,116740.0,116730.0,0.37212173]
[1754636809181,0.3318468,116740.0,116730.0,0.54345729]
[1754636809483,0.3318468,116740.0,116730.0,0.37212173]
[1754636810050,0.3318468,116740.0,116730.0,0.54345729]
[1754636811072,0.3318468,116740.0,116730.0,0.37212173]
[1754636813213,0.3318468,116740.0,116730.0,0.36914173]
[1754636813656,0.3318468,116740.0,116730.0,0.37225173]
[1754636813854,0.3318468,116740.0,116730.0,0.54358729]
[1754636814666,0.3318468,116740.0,116730.0,0.37225173]
[1754636816120,0.3318468,116740.0,116730.0,0.64165173]
[1754636819838,0.3318468,116740.0,116730.0,0.81298729]
[1754636820915,0.3318468,116740.0,116730.0,0.80987729]
[1754636825956,0.3318468,116740.0,116730.0,0.81298729]
[1754636831505,0.3318468,116740.0,116730.0,0.49604256]
[1754636831933,0.3868711,116740.0,116730.0,0.80987729]
[1754636832909,0.4099211,116740.0,116730.0,0.80987729]
[1754636833837,0.4131211,116740.0,116730.0,0.80987729]
[1754636835292,0.4131211,116740.0,116730.0,0.63854173]
[1754636836057,0.4131211,116740.0,116730.0,0.80987729]
[1754636836411,0.4131211,116740.0,116730.0,0.63854173]
[1754636837771,0.4131211,116740.0,116730.0,0.321597]
[1754636838020,0.48259872,116740.0,116730.0,0.321597]
[1754636838197,0.48259872,116740.0,116730.0,0.295127]
[1754636838426,0.48259872,116740.0,116730.0,0.61207173]
[1754636838818,0.48259872,116740.0,116730.0,0.295127]
[1754636841319,0.48259872,116740.0,116730.0,0.61207173]
[1754636841850,0.48259872,116740.0,116730.0,0.295127]
[1754636842078,0.79954345,116740.0,116730.0,0.295127]
[1754636842340,0.48259872,116740.0,116730.0,0.2694]
[1754636842544,0.79954345,116740.0,116730.0,0.2694]
[1754636845653,0.17133556,116730.0,116720.0,0.67130749]
[1754636845844,0.24995786,116730.0,116720.0,0.67337485]
[1754636845990,0.27304786,116730.0,116720.0,0.35643012]
[1754636846205,0.27304786,116730.0,116720.0,0.67337485]
[1754636848218,0.27624786,116730.0,116720.0,0.35643012]
[1754636848422,0.27624786,116730.0,116720.0,0.67337485]
[1754636854503,0.25315786,116730.0,116720.0,0.67337485]
[1754636856077,0.25315786,116730.0,116720.0,0.35643012]
[1754636856283,0.27624786,116730.0,116720.0,0.30407112]
[1754636856421,0.27624786,116730.0,116720.0,0.32868112]
[1754636857596,0.27724786,116730.0,116720.0,0.32868112]
[1754636857793,0.27824786,116730.0,116720.0,0.32868112]
[1754636857953,0.59519259,116730.0,116720.0,0.32868112]
[1754636858391,0.27824786,116730.0,116720.0,0.32868112]
[1754636859676,0.27824786,116730.0,116720.0,0.64562585]
[1754636862580,0.27824786,116730.0,116720.0,0.30407112]
[1754636862792,0.27824786,116730.0,116720.0,0.62101585]
[1754636863420,0.27824786,116730.0,116720.0,0.02587841]
[1754636863852,0.69950372,116730.0,116720.0,0.02587841]
[1754636866094,0.69950372,116730.0,116720.0,4.736e-05]
[1754636866916,0.38255899,116730.0,116720.0,4.736e-05]
[1754636867121,0.69950372,116730.0,116720.0,4.736e-05]
[1754636874346,0.38255899,116730.0,116720.0,4.736e-05]
[1754636874552,0.69950372,116730.0,116720.0,4.736e-05]
[1754636876357,0.82966372,116730.0,116720.0,4.736e-05]
[1754636877202,0.51271899,116730.0,116720.0,4.736e-05]
[1754636877426,0.82966372,116730.0,116720.0,4.736e-05]
[1754636877828,0.82866372,116730.0,116720.0,4.736e-05]
[1754636878273,0.82766372,116730.0,116720.0,0.00204736]
[1754636878485,0.82766372,116730.0,116720.0,0.00404736]
[1754636879258,0.82766372,116730.0,116720.0,0.25404736]
[1754636881878,1.14460845,116730.0,116720.0,0.25404736]
[1754636882300,0.82766372,116730.0,116720.0,0.25404736]
[1754636882532,0.85339872,116730.0,116720.0,0.25404736]
[1754636890497,0.87669872,116730.0,116720.0,0.25404736]
[1754636891854,1.19364345,116730.0,116720.0,0.25404736]
[1754636892210,1.53364345,116730.0,116720.0,0.25404736]
[1754636892462,0.18879925,116720.0,116710.0,4e-05]
[1754636892753,1.12104512,116720.0,116710.0,4e-05]
[1754636893182,1.14678212,116720.0,116710.0,4e-05]
[1754636894041,1.14678212,116720.0,116710.0,0.00104]
[1754636897330,0.82983739,116720.0,116710.0,0.02547]
[1754636901589,0.82983739,116720.0,116710.0,0.00104]
[1754636901801,1.14678212,116720.0,116710.0,0.00104]
[1754636909403,0.82983739,116720.0,116710.0,0.00104]
[1754636916634,1.14678212,116720.0,116710.0,0.00104]
[1754636917068,1.17008212,116720.0,116710.0,0.00104]
[1754636918410,1.17008212,116720.0,116710.0,4e-05]
[1754636918787,1.17008212,116720.0,116710.0,0.00204]
[1754636919110,1.17008212,116720.0,116710.0,0.00304]
[1754636920242,0.85313739,116720.0,116710.0,0.00304]
[1754636922542,1.17008212,116720.0,116710.0,0.00304]
[1754636925921,0.60567028,116720.0,116710.0,0.00304]
[1754636926143,1.23955974,116720.0,116710.0,0.00304]
[1754636926634,0.60567028,116720.0,116710.0,0.00304]
[1754636926903,1.57955974,116720.0,116710.0,0.00304]
[1754636927351,0.94567028,116720.0,116710.0,0.00304]
[1754636927563,1.57955974,116720.0,116710.0,0.00304]
[1754636927761,1.58403327,116720.0,116710.0,0.00304]
[1754636928631,0.95014381,116720.0,116710.0,0.00304]
[1754636928842,1.58403327,116720.0,116710.0,0.00304]
[1754636929259,0.95014381,116720.0,116710.0,0.00304]
[1754636929468,1.58403327,116720.0,116710.0,0.00304]
[1754636936024,0.95014381,116720.0,116710.0,0.00304]
[1754636936228,1.58403327,116720.0,116710.0,0.00304]
[1754636938492,0.18882862,116700.0,116690.0,0.02709]
[1754636938713,0.75905614,116700.0,116690.0,0.0261]
[1754636939129,0.78479714,116700.0,116690.0,0.0261]
[1754636939413,0.79332029,116700.0,116690.0,0.0261]
[1754636940966,0.79631029,116700.0,116690.0,0.0261]
[1754636941402,1.11325502,116700.0,116690.0,0.0261]
[1754636941783,0.50725556,116700.0,116690.0,0.0261]
[1754636941988,1.14114502,116700.0,116690.0,0.0261]
[1754636942394,1.14114502,116700.0,116690.0,0.02396]
[1754636943778,0.18884331,116690.0,116680.0,0.02839815]
[1754636943973,0.76363177,116690.0,116680.0,0.05449815]
[1754636944939,0.76371273,116690.0,116680.0,0.05449815]
[1754636945109,0.76770273,116690.0,116680.0,0.05155815]
[1754636945312,0.188858,116680.0,116670.0,0.00294]
[1754636945567,0.45907441,116680.0,116670.0,0.32202473]
[1754636945715,0.45907441,116680.0,116670.0,0.00508]
[1754636946154,0.45736141,116680.0,116670.0,0.02904]
[1754636946989,0.45836141,116680.0,116670.0,0.02904]
[1754636947756,0.45736141,116680.0,116670.0,0.02904]
[1754636948215,0.77629614,116680.0,116670.0,0.0261]
[1754636948425,0.80418614,116680.0,116670.0,0.0261]
[1754636948787,0.45935141,116680.0,116670.0,0.0261]
[1754636949223,0.45736141,116680.0,116670.0,0.34304473]
[1754636949461,0.45736141,116680.0,116670.0,0.34598473]
[1754636950341,0.45736141,116680.0,116670.0,0.02904]
[1754636950721,0.45736141,116680.0,116670.0,0.0261]
[1754636950922,0.45736141,116680.0,116670.0,0.34304473]
[1754636951448,0.45736141,116680.0,116670.0,0.34598473]
[1754636952434,0.45736141,116680.0,116670.0,0.02904]
[1754636952629,1.19060849,116680.0,116670.0,0.02396]
[1754636953101,1.19060849,116680.0,116660.0,0.0273]
[1754636953102,0.18887269,116670.0,116660.0,0.0273]
[1754636953345,0.75922021,116670.0,116660.0,0.0265]
[1754636954901,0.44227548,116670.0,116660.0,0.0265]
[1754636955116,0.44437548,116670.0,116660.0,0.0265]
[1754636955519,0.44437548,116670.0,116660.0,0.34344473]
[1754636955699,0.44437548,116670.0,116660.0,0.0265]
[1754636956111,0.47144548,116670.0,116660.0,0.0265]
[1754636956929,0.44437548,116670.0,116660.0,0.0265]
[1754636957501,0.46829548,116670.0,116660.0,0.0265]
[1754636957666,0.78839021,116670.0,116660.0,0.02436]
[1754636958022,0.78839021,116670.0,116660.0,0.0004]
[1754636958464,0.47144548,116670.0,116660.0,0.02423]
[1754636958651,0.78839021,116670.0,116660.0,0.0004]
[1754636959508,0.81413821,116670.0,116660.0,0.0004]
[1754636962529,1.15413821,116670.0,116660.0,0.0004]
[1754636962925,1.15413821,116670.0,116660.0,0.0014]
[1754636964019,1.15413821,116670.0,116660.0,0.0034]
[1754636964235,0.83719348,116670.0,116660.0,0.0034]
[1754636964456,1.47108294,116670.0,116660.0,0.0034]
[1754636966233,0.83719348,116670.0,116660.0,0.0034]
[1754636966467,1.15413821,116670.0,116660.0,0.0034]
[1754636968953,1.15861174,116670.0,116660.0,0.0034]
[1754636971690,0.84166701,116670.0,116660.0,0.0034]
[1754636971859,1.15861174,116670.0,116660.0,0.0034]
[1754636972950,0.71114701,116670.0,116660.0,0.0034]
[1754636973159,1.15889174,116670.0,116660.0,0.0034]
[1754636974215,0.84194701,116670.0,116660.0,0.0034]
[1754636974374,1.15889174,116670.0,116660.0,0.0034]
[1754636975581,1.2548313,116670.0,116660.0,0.0034]
[1754636977803,0.93788657,116670.0,116660.0,0.0034]
[1754636978018,1.2548313,116670.0,116660.0,0.0034]
[1754636981308,0.90879657,116670.0,116660.0,0.03225]
[1754636981536,1.2257413,116670.0,116660.0,0.03225]
[1754636987313,1.2257413,116670.0,116660.0,0.02922]
[1754636987537,0.90879657,116670.0,116660.0,0.02922]
[1754636987734,1.2257413,116670.0,116660.0,0.02922]
[1754636989297,1.2278613,116670.0,116660.0,0.02922]
[1754636989792,1.2555213,116670.0,116660.0,0.02922]
[1754636990270,0.93857657,116670.0,116660.0,0.02922]
[1754636990394,1.2555213,116670.0,116660.0,0.02922]
[1754636993331,1.2555213,116670.0,116660.0,0.0034]
[1754636997274,0.93857657,116670.0,116660.0,0.0034]
[1754636997482,1.2555213,116670.0,116660.0,0.0034]
[1754636998280,0.93857657,116670.0,116660.0,0.0034]
[1754636998513,1.2555213,116670.0,116660.0,0.0034]
[1754637000631,1.57246603,116670.0,116660.0,0.0034]
[1754637001420,1.57246603,116670.0,116660.0,0.0014]
[1754637001821,1.57246603,116670.0,116660.0,0.0024]
[1754637002903,1.57246603,116670.0,116660.0,0.0014]
[1754637003515,1.56217255,116670.0,116660.0,0.01748012]
[1754637003740,1.54158559,116670.0,116660.0,0.01748012]
[1754637003976,1.45752215,116670.0,116660.0,0.01748012]
[1754637004206,1.21501701,116670.0,116660.0,0.01748012]
[1754637004559,1.15497169,116670.0,116660.0,0.03492914]
[1754637004765,1.15049816,116670.0,116660.0,0.03492914]
[1754637005552,1.17731495,116670.0,116660.0,0.03492914]
[1754637005940,0.86037022,116670.0,116660.0,0.03492914]
[1754637006342,0.86037022,116670.0,116660.0,0.01748012]
[1754637006576,0.75751539,116670.0,116660.0,0.03492914]
[1754637006985,0.83084039,116670.0,116660.0,0.03492914]
[1754637007645,0.77079507,116670.0,116660.0,0.03492914]
[1754637007835,0.77291507,116670.0,116660.0,0.03492914]
[1754637008629,0.48623566,116670.0,116660.0,0.03492914]
[1754637008826,0.80318039,116670.0,116660.0,0.03492914]
[1754637009453,0.72941045,116670.0,116660.0,0.03492914]
[1754637009707,0.66936515,116670.0,116660.0,0.03492914]
[1754637010278,0.69167515,116670.0,116660.0,0.03492914]
[1754637010642,0.8030536,116670.0,116660.0,0.03492914]
[1754637010847,0.8030536,116670.0,116660.0,0.05897914]
[1754637011454,0.78246677,116670.0,116660.0,0.05897914]
[1754637011663,0.33389778,116670.0,116660.0,0.05897914]
[1754637011865,0.78184251,116670.0,116660.0,0.05897914]
[1754637012066,0.78184251,116670.0,116660.0,0.06405914]
[1754637012538,0.73895339,116670.0,116660.0,0.06405914]
[1754637012788,0.67890862,116670.0,116660.0,0.06405914]
[1754637012956,0.68013862,116670.0,116660.0,0.06405914]
[1754637013316,0.66984525,116670.0,116660.0,0.06405914]
[1754637013742,0.5995072,116670.0,116660.0,0.06405914]
[1754637013953,0.28256247,116670.0,116660.0,0.06405914]
[1754637014391,0.5995072,116670.0,116660.0,0.06405914]
[1754637014620,0.51465896,116670.0,116660.0,0.06405914]
[1754637014836,0.68608263,116670.0,116660.0,0.06405914]
[1754637015039,0.3691379,116670.0,116660.0,0.38100387]
[1754637015448,0.29536872,116670.0,116660.0,0.38100387]
[1754637015620,0.23532404,116670.0,116660.0,0.72100387]
[1754637016439,0.23532404,116670.0,116660.0,0.38100387]
[1754637016649,0.17527936,116670.0,116660.0,0.38100387]
[1754637017864,0.24627468,116670.0,116660.0,0.38100387]
[1754637018701,0.20338562,116670.0,116660.0,0.38100387]
[1754637018921,0.30246367,116670.0,116660.0,0.38100387]
[1754637019347,0.17142367,116670.0,116660.0,1.0379486]
[1754637019589,0.28183694,116670.0,116660.0,0.72100387]
[1754637019806,0.22179229,116670.0,116660.0,0.38100387]
[1754637020021,0.22179229,116670.0,116660.0,0.06405914]
[1754637020236,0.22179229,116670.0,116660.0,0.38100387]
[1754637020890,0.30242367,116670.0,116660.0,0.38100387]
[1754637021531,0.27154364,116670.0,116660.0,0.38100387]
[1754637021825,0.22865471,116670.0,116660.0,0.6979486]
[1754637022047,0.2997702,116670.0,116660.0,1.0379486]
[1754637022889,0.23972569,116670.0,116660.0,1.0379486]
[1754637023583,0.22943235,116670.0,116660.0,0.6979486]
[1754637023783,0.13116,116670.0,116660.0,0.6979486]
[1754637023987,0.30258367,116670.0,116660.0,0.6979486]
[1754637024591,0.25969474,116670.0,116660.0,0.6979486]
[1754637024828,0.19965023,116670.0,116660.0,1.0379486]
[1754637025250,0.14742367,116670.0,116660.0,1.0379486]
[1754637025461,0.27858367,116670.0,116660.0,1.0379486]
[1754637025882,0.21853988,116670.0,116660.0,0.6979486]
[1754637026924,0.13116,116670.0,116660.0,0.6979486]
[1754637027133,0.30258367,116670.0,116660.0,0.6979486]
[1754637027485,0.25112022,116670.0,116660.0,0.6979486]
[1754637027692,0.20823401,116670.0,116660.0,1.0379486]
[1754637027897,0.27927331,116670.0,116660.0,0.6979486]
[1754637028937,0.21923269,116670.0,116660.0,0.6979486]
[1754637029404,0.06415269,116670.0,116660.0,1.65741169]
[1754637029612,0.33222962,116680.0,116670.0,0.01744902]
[1754637029784,0.33222962,116680.0,116670.0,0.6694986]
[1754637030018,0.27219646,116680.0,116670.0,1.20687227]
[1754637030403,0.33394262,116680.0,116670.0,1.20687227]
[1754637030544,0.29106317,116680.0,116670.0,1.20687227]
[1754637030762,0.29106317,116680.0,116670.0,0.99625529]
[1754637030969,0.23103194,116680.0,116670.0,0.99625529]
[1754637031809,0.17100122,116680.0,116670.0,0.99625529]
[1754637032021,0.18004496,116690.0,116680.0,0.35744902]
[1754637032220,0.18004496,116690.0,116680.0,1.3791841]
[1754637032824,0.12001562,116690.0,116680.0,1.3791841]
[1754637033086,0.12001562,116690.0,116680.0,0.95591162]
[1754637033639,0.07885265,116690.0,116680.0,0.95591162]
[1754637033837,0.43306104,116700.0,116690.0,0.01744902]
[1754637034125,0.43310839,116700.0,116690.0,0.45888162]
[1754637034368,0.43310839,116700.0,116690.0,0.48483162]
[1754637034993,0.37307905,116700.0,116690.0,0.48483162]
[1754637035651,0.35249756,116700.0,116690.0,0.48483162]
[1754637035866,0.35235756,116700.0,116690.0,0.48483162]
[1754637036047,0.46373269,116700.0,116690.0,0.48483162]
[1754637036547,0.42285459,116700.0,116690.0,0.48483162]
[1754637037130,0.37339423,116700.0,116690.0,0.48483162]
[1754637037958,0.31336489,116700.0,116690.0,0.48483162]
[1754637038806,0.18228489,116700.0,116690.0,0.48483162]
[1754637038987,0.12225567,116700.0,116690.0,0.48483162]
[1754637039392,0.11825567,116700.0,116690.0,0.48483162]
[1754637039606,0.04450551,116700.0,116690.0,0.48483162]
[1754637040072,0.002,116700.0,116690.0,0.48483162]
[1754637040284,0.17540447,116700.0,116690.0,0.48483162]
[1754637040507,0.17340447,116700.0,116690.0,0.48483162]
[1754637041129,0.12194424,116700.0,116690.0,0.48483162]
[1754637041539,0.23118655,116700.0,116690.0,0.48483162]
[1754637041751,0.18942186,116700.0,116690.0,0.48483162]
[1754637041957,0.19042186,116700.0,116690.0,0.48483162]
[1754637042158,0.13039265,116700.0,116690.0,0.48483162]